Cogmind - Beta 17 @@@ ROGUE MODE // 2026.07.16 @ 23:58:48 Player: Skysub Result: Destroyed by D-53 Grenadier with Mini Grenade Launcher Performance ------------- Evolutions (0) 0 Regions Visited (4) 800 Robots Destroyed (36) 180 Value Destroyed (896) 896 Prototype IDs (5) 100 Alien Tech Used (0) 0 Bonus (9500) 9500 TOTAL SCORE: 11476 Bonus ------- Prayed to X0-1V1 5000 Major X0-1V1 Interference 4500 Cogmind --------- Core Integrity 0/140 Matter 328/800 Energy 1100/1100 System Corruption 13% Temperature Cool (0) Movement Rolling (115) Ox1 Location -9/Mines Parts ------- > --- POWER (1) -------- (None) > --- PROPULSION (1) --- Compact Wheel > --- UTILITY (2) ------ Large Storage Unit Self-contained Transmogrifier > --- WEAPON (3) ------- Heavy Flail (fused) > --- INVENTORY (15) --- Light Fission Core Improved Treads Improved Heat Sink Structural Scanner Weapon Cycler Light Armor Plating X0-1V1's Piety Tracker Small Laser Small Laser Light Assault Rifle Light Assault Rifle Improved Assault Rifle Grenade Launcher Mining Laser Peak State ------------ > --- POWER ------------ Enhanced Nuclear Core > --- PROPULSION ------- Improved Treads > --- UTILITY ---------- Large Storage Unit Self-contained Transmogrifier > --- WEAPON ----------- Light Assault Rifle Shotgun Heavy Flail > --- INVENTORY -------- Light Fission Core Improved Treads Compact Wheel Improved Heat Sink Structural Scanner Weapon Cycler Light Armor Plating X0-1V1's Piety Tracker Small Laser Small Laser Light Assault Rifle Light Assault Rifle Improved Assault Rifle Grenade Launcher Mining Laser [Rating: 26] Favorites ----------- Power Deuterium Engine Engine Deuterium Engine Power Core Enhanced Nuclear Core Propulsion Light Treads Treads Light Treads Wheel Compact Wheel Utility Large Storage Unit Device Self-contained Transmogrifier Storage Large Storage Unit Weapon Light Assault Rifle Energy Gun Small Laser Ballistic Gun Light Assault Rifle Launcher Grenade Launcher Impact Weapon Heavy Flail Build | -11 -10 -10 -10 -9 ------- Run | Yrd Mat Min Exi Min Slots Evolved . | . . . . . Power . | . . . . . Propulsion . | . . . . . Utility . | . . . . . Weapon . | . . . . . Parts Attached 23 | 6 12 4 . 1 Power 5 | 1 3 1 . . Engine 5 | 1 3 1 . . Core . | . . . . . Reactor . | . . . . . Propulsion 5 | 2 2 . . 1 Treads 2 | . 2 . . . Leg . | . . . . . Wheel 3 | 2 . . . 1 Hover . | . . . . . Flight . | . . . . . Utility 4 | 1 3 . . . Device 2 | . 2 . . . Storage 2 | 1 1 . . . Processor . | . . . . . Hackware . | . . . . . Protection . | . . . . . Artifact . | . . . . . Weapon 9 | 2 4 3 . . Energy Gun 1 | . 1 . . . Energy Cannon . | . . . . . Ballistic Gun 7 | 2 3 2 . . Ballistic Cannon . | . . . . . Launcher 1 | . . 1 . . Special Weapon . | . . . . . Impact Weapon . | . . . . . Slashing Weapon . | . . . . . Piercing Weapon . | . . . . . Special Melee Weapon . | . . . . . Unidentified Prototypes 1 | . 1 . . . Parts Lost 11 | . 7 1 . 3 Power 5 | . 3 1 . 1 Propulsion 2 | . 2 . . . Utility . | . . . . . Weapon 4 | . 2 . . 2 Highest Loss Streak 3 | . 2 1 . 3 To Critical Strikes . | . . . . . Average Backups 10 | 1 6 13 14 14 Power . | . . . . 1 Propulsion 2 | 1 2 2 2 1 Utility 2 | . 1 4 5 5 Weapon 4 | . 2 7 7 7 Tool/Special . | . . . . . Unused Backups 10 | . . 1 . 9 Power 1 | . . . . 1 Propulsion 1 | . . . . 1 Utility 4 | . . . . 4 Weapon 4 | . . 1 . 3 Tool/Special . | . . . . . Average Slot Usage (%) 95 | . 92 97 100 98 Engine 10 | . 9 10 14 11 Treads 10 | . 7 13 14 12 Wheel 9 | . 18 . . 1 Device 11 | . 10 12 14 14 Storage 13 | . 14 12 14 14 Energy Gun 2 | . 4 . . . Ballistic Gun 30 | . 27 40 28 26 Impact Weapon 5 | . . 6 14 14 Peak Build Rating 26 | 6 23 25 24 26 Average Rating 18 | 4 13 24 23 23 On Entrance 15 | . 6 23 23 24 Avg Prop Armor Cover (%) . | . . . . . Naked Turns . | . . . . . Heaviest Build 39 | 12 32 39 36 36 Greatest Support 40 | 26 40 40 23 23 Greatest Overweight (x) 2 | . 1 1 1 2 Average Overweight (x) . | . . . 1 1 Largest Inventory Capacity 15 | 8 15 15 15 15 Average Capacity 14 | 7 14 15 15 15 Most Carried 15 | 3 12 15 15 15 Average Carried 10 | 1 6 13 14 14 Final Capacity 15 | 8 15 15 15 15 Final Carried 15 | 3 12 15 15 14 Transmogrified Parts 3 | . . 1 1 1 Integrity Recovered 82 | . . . 64 18 Class Distribution -------------------- 57% | Mutant 42% | Gunner Dominant Class ---------------- Mutant | -10/Materials Gunner | -10/Mines Mutant | -10/Exiles Mutant | -9/Mines Resources | -11 -10 -10 -10 -9 ----------- Run | Yrd Mat Min Exi Min Matter Collected 779 | 183 408 136 . 52 Remotely . | . . . . . Salvage Created 1139 | . 871 264 . 4 Parts 69 | . 59 10 . . Haulers Intercepted 1 | . 1 . . . Recyclers Shooed . | . . . . . Parts Field Recycled . | . . . . . Retrieved Matter . | . . . . . Parts Self-Destructed . | . . . . . Prevented . | . . . . . Parts Restored . | . . . . . Kills | -11 -10 -10 -10 -9 ------- Run | Yrd Mat Min Exi Min Combat Hostiles Destroyed 31 | . 23 7 . 1 Melee 1 | . . . . 1 Guns 28 | . 23 5 . . AOE 2 | . . 2 . . Classes Destroyed 10 | . 7 2 . 1 Builder 1 | . 1 . . . Hauler 1 | . 1 . . . Recycler 1 | . . 1 . . Operator 1 | . 1 . . . Watcher 1 | . 1 . . . Swarmer 12 | . 8 4 . . Grunt 16 | . 14 2 . . Sentry 1 | . 1 . . . Demolisher 1 | . . . . 1 Mutant 1 | . . 1 . . Best Kill Streak 7 | . 7 4 . 1 Combat Bots Only 7 | . 7 4 . 1 Max Kills in Single Turn 4 | . 2 4 . 1 Gunslinging 1 | . 1 . . . Exploded 2 | . . 2 . . Melee 1 | . . . . 1 Uniques/NPCs Destroyed . | . . . . . Combat | -11 -10 -10 -10 -9 -------- Run | Yrd Mat Min Exi Min Hostile Shots Fired 181 | . 134 30 . 17 Missed 50 | . 40 9 . 1 Hits 131 | . 94 21 . 16 Melee 1 | . . . . 1 Projectile 130 | . 94 21 . 15 AOE 10 | . . . . 10 Critical Strikes 2 | . 1 1 . . Damage Taken 1743 | . 1034 237 . 472 Core 381 | . 188 46 . 147 Absorbed by Shields . | . . . . . Core Remaining (%) 100 | 100 . . . . Volleys Fired 91 | . 81 9 . 1 Largest 4 | . 3 4 . 2 Hottest 96 | . 83 96 . 43 Shots Fired 228 | . 196 30 . 2 Gun 227 | . 196 29 . 2 Cannon . | . . . . . Launcher 1 | . . 1 . . Special . | . . . . . Kinetic 197 | . 166 29 . 2 Thermal 30 | . 30 . . . Explosive 1 | . . 1 . . Electromagnetic . | . . . . . Robot Hit Streak 17 | . 17 7 . 5 Robot Miss Streak 5 | . 5 4 . . Penetration Max . | . . . . . Secondary Targets 5 | . 5 . . . Max Gunslinging Chain 1 | . 1 . . . Shots Hit Robots 159 | . 137 17 . 5 Core Hits 69 | . 54 14 . 1 Critical Kills 1 | . 1 . . . Critical Parts Destroyed . | . . . . . Critical Strikes 1 | . 1 . . . Destroy 1 | . 1 . . . Melee Attacks 6 | . . 1 . 5 Impact 6 | . . 1 . 5 Slashing . | . . . . . Piercing . | . . . . . Sneak Attacks 1 | . . 1 . . Combat Hostiles . | . . . . . Follow-up Attacks . | . . . . . Damage Inflicted 1751 | . 1237 387 . 127 Guns 1489 | . 1237 222 . 30 Cannons . | . . . . . Explosions 94 | . . 94 . . Melee 168 | . . 71 . 97 Ramming . | . . . . . Kinetic 1238 | . 986 222 . 30 Thermal 251 | . 251 . . . Explosive 94 | . . 94 . . Electromagnetic . | . . . . . Impact 168 | . . 71 . 97 Slashing . | . . . . . Piercing . | . . . . . Highest Corruption 13 | . 9 13 13 13 Average Corruption 12 | . 9 11 13 13 Corruption Purged . | . . . . . Corruption Blocked . | . . . . . Effects 26 | . 1 12 10 3 Message Errors 4 | . . 3 1 . Matter Fused 9 | . . 6 2 1 Heat Flow Errors 4 | . 1 3 . . Energy Discharges 2 | . . . 2 . Data Loss (minor) 6 | . . . 5 1 Misdirections 1 | . . . . 1 Overload Shots . | . . . . . Overflow Damage 46 | . . 46 . . Projectiles . | . . . . . Explosions . | . . . . . Melee 46 | . . 46 . . Knockbacks 2 | . . 1 . 1 Impact 2 | . . 1 . 1 Kinetic . | . . . . . Secondary . | . . . . . Self-Inflicted Damage . | . . . . . Shots . | . . . . . Rammed . | . . . . . Targets Rammed . | . . . . . Kicked . | . . . . . Crushed . | . . . . . Highest Temperature 313 | . 313 186 . 6 Average Temperature 84 | . 86 71 . 3 Received Heat Transfer 416 | . 351 18 . 47 Siege Activations . | . . . . . Martial Activations . | . . . . . Shielding Activations . | . . . . . Robots Disrupted . | . . . . . Combat Hostiles . | . . . . . Robots Corrupted 1 | . . 1 . . Combat Hostiles . | . . . . . Parts Fried 1 | . . 1 . . Impact Corruptions 2 | . . 2 . . Robots Melted . | . . . . . Combat Hostiles . | . . . . . Parts Melted 1 | . 1 . . . Heat Transferred 550 | . 550 . . . Parts Sabotaged . | . . . . . Parts Stolen . | . . . . . Parts Stripped . | . . . . . Power Chain Reactions . | . . . . . Alert | -11 -10 -10 -10 -9 ------- Run | Yrd Mat Min Exi Min Maximum Alert Level 1 | . 1 1 . . Low Security (%) 75 | 100 80 51 . 100 Level 1 24 | . 20 48 . . Level 2 . | . . . . . Level 3 . | . . . . . Level 4 . | . . . . . Level 5 . | . . . . . High Security . | . . . . . Max Security . | . . . . . Peak Influence 253 | . 249 253 . 20 Initial 90 | . . 90 . . Average 133 | . 146 179 . . Influence Increases 945 | . 647 278 . 20 Destroy 0b10 Robot/C 600 | . 460 120 . 20 Destroy 0b10 Robot/NC 25 | . 20 5 . . Destroy Leader 84 | . 74 10 . . Successful Hack 33 | . 33 . . . Select Force Hacks 60 | . 60 . . . Destroy Structure 9 | . . 9 . . Miscellaneous 134 | . . 134 . . Influence Decreases 945 | . 414 323 188 20 Entered New Map 331 | . . 143 188 . Time Decay 514 | . 334 170 . 10 Lost Part 90 | . 70 10 . 10 Lost Ally 10 | . 10 . . . Squads Dispatched 6 | . 6 . . . Investigation 5 | . 5 . . . Extermination . | . . . . . Reinforcement 1 | . 1 . . . Assault . | . . . . . Garrison . | . . . . . Intercept . | . . . . . Searches Triggered . | . . . . . Construction Impeded . | . . . . . Haulers Reinforced . | . . . . . Active Scanning Responses . | . . . . . Cargo Convoy Interrupts . | . . . . . Stealth | -11 -10 -10 -10 -9 --------- Run | Yrd Mat Min Exi Min Distress Signals 4 | . 4 . . . Communications Jammed . | . . . . . Distress Signals . | . . . . . Times Spotted 59 | . 33 7 . 19 Peak Tracking Total 20 | . 6 4 . 20 Tactical Retreats 1 | . . . . 1 Traps | -11 -10 -10 -10 -9 ------- Run | Yrd Mat Min Exi Min Traps Triggered 2 | . 2 . . . Indirectly . | . . . . . Trap Hack Attempts . | . . . . . Triggered . | . . . . . Disarmed 6 | . 6 . . . Reprogrammed . | . . . . . Reused . | . . . . . Traps Extracted . | . . . . . Installed . | . . . . . Triggered . | . . . . . Machines | -11 -10 -10 -10 -9 ---------- Run | Yrd Mat Min Exi Min Machines Disabled . | . . . . . Max in Single Turn . | . . . . . Machines Repaired . | . . . . . Machines Dismantled . | . . . . . Machines Sabotaged . | . . . . . Overloaded Fab Kills . | . . . . . Hacking | -11 -10 -10 -10 -9 --------- Run | Yrd Mat Min Exi Min Machines Accessed 9 | . 9 . . . Terminals 7 | . 7 . . . Fabricators . | . . . . . Repair Stations . | . . . . . Recycling Units 2 | . 2 . . . Scanalyzers . | . . . . . Garrison Access . | . . . . . Total Hacks 25 | . 25 . . . Successful 18 | . 18 . . . Failed 6 | . 6 . . . Catastrophic . | . . . . . Database Lockouts 1 | . 1 . . . Manual 23 | . 23 . . . Terminals 20 | . 20 . . . Fabricators . | . . . . . Repair Stations . | . . . . . Recycling Units 5 | . 5 . . . Scanalyzers . | . . . . . Garrison Access . | . . . . . Terminal Hacks 7 | . 7 . . . Robot Analysis 1 | . 1 . . . Prototype ID Bank 1 | . 1 . . . Terminal Index 1 | . 1 . . . Disarm Traps 1 | . 1 . . . Recall Reinforcements 1 | . 1 . . . Zone Layout 2 | . 2 . . . Fabricator Hacks . | . . . . . Repair Station Hacks . | . . . . . Recycling Unit Hacks 2 | . 2 . . . Report Inventory 2 | . 2 . . . Scanalyzer . | . . . . . Garrison Access Hacks . | . . . . . Unauthorized Hacks 9 | . 9 . . . Terminals 7 | . 7 . . . Assimilate 1 | . 1 . . . Botnet 1 | . 1 . . . Skim 5 | . 5 . . . Fabricators . | . . . . . Repair Stations . | . . . . . Recycling Units 2 | . 2 . . . Tunnel 2 | . 2 . . . Scanalyzers . | . . . . . Garrison Access . | . . . . . Data Cores Recovered . | . . . . . Used . | . . . . . Hacking Detections 7 | . 7 . . . Full Trace Events . | . . . . . Feedback Events . | . . . . . Feedback Blocked . | . . . . . Robot Schematics Acquired . | . . . . . Robots Built . | . . . . . Authchips . | . . . . . Time . | . . . . . Total Robot Build Rating . | . . . . . Part Schematics Acquired . | . . . . . Parts Built . | . . . . . Authchips . | . . . . . Time . | . . . . . Total Part Build Rating . | . . . . . Part Studies Acquired . | . . . . . Parts Repaired . | . . . . . Time . | . . . . . Parts Recycled . | . . . . . Recycled Matter . | . . . . . Retrieved Matter . | . . . . . Retrieved Components . | . . . . . Parts Scanalyzed . | . . . . . Part Schematics Acquired . | . . . . . Parts Damaged . | . . . . . Bothacking | -11 -10 -10 -10 -9 ------------ Run | Yrd Mat Min Exi Min Used RIF Installer . | . . . . . Robots Hacked . | . . . . . Non-combat . | . . . . . Combat . | . . . . . Robot Hacks Applied . | . . . . . Relay Couplers Released . | . . . . . Fabnet Peak Effective % . | . . . . . Robots Rewired . | . . . . . Allies Hacked . | . . . . . Hacks Repelled . | . . . . . Allies | -11 -10 -10 -10 -9 -------- Run | Yrd Mat Min Exi Min Total Allies 1 | . 1 . . . Largest Group 1 | . 1 . . . Highest-Rated Group 10 | . 10 . . . Highest-Rated Ally 10 | . 10 . . . Total Orders . | . . . . . Ally Attacks . | . . . . . Total Damage . | . . . . . Kills . | . . . . . Allies Corrupted . | . . . . . Allies Melted . | . . . . . X0-1V1 Amusement Gains 104 | . 5 1 . 98 Good Acts 21 | . 16 5 . . Bad Acts 31 | . 18 10 . 3 Intel | -11 -10 -10 -10 -9 ------- Run | Yrd Mat Min Exi Min Active Infowar (turns) 212 | . 212 . . . Structural 212 | . 212 . . . Robot Analysis Total 1 | . 1 . . . Derelict Logs Recovered 1 | . . 1 . . Drone Launches . | . . . . . Drone Recoveries . | . . . . . Exploration | -11 -10 -10 -10 -9 ------------- Run | Yrd Mat Min Exi Min Turns Passed 1646 | 61 795 345 304 141 Spaces Moved 794 | 55 426 131 127 55 Core 1 | 1 . . . . Treads 414 | . 108 131 127 48 Legs . | . . . . . Wheels 379 | 54 318 . . 7 Hover . | . . . . . Flight . | . . . . . Fastest Speed 50 | 50 90 160 240 130 Average Speed 158 | 89 111 232 240 226 Slowest Speed 240 | 100 240 240 240 240 Overloaded Moves . | . . . . . Propulsion Burnouts . | . . . . . Robots Hopped . | . . . . . Potential Cave-ins . | . . . . . Cave-ins Triggered . | . . . . . Exploration Rate (%) 38 | 3 91 34 49 16 Regions Visited 4 Branch Regions 3 Pre-discovered Areas 3 | . 2 1 . . Known Exits Taken 2 | . 1 . 1 . Unknown Exits Taken 2 | 1 . 1 . . Scrap Searched . | . . . . . Spaces Dug . | . . . . . Terrain Destroyed 9 | . . 9 . . Melee . | . . . . . Projectile . | . . . . . AOE 9 | . . 9 . . Terrain Rammed . | . . . . . Walls Destroyed . | . . . . . Machines Disabled . | . . . . . Actions | -11 -10 -10 -10 -9 --------- Run | Yrd Mat Min Exi Min Total 1007 | 63 603 151 128 62 Wait 74 | . 73 1 . . Move 790 | 54 425 130 126 55 Hop . | . . . . . Pick Up 19 | 3 10 5 1 . Fast Attach 13 | 6 6 1 . . Attach 6 | . 5 1 . . Detach . | . . . . . Swap 6 | . 3 2 . 1 Drop 2 | . . 1 1 . Fire 91 | . 81 9 . 1 Melee 6 | . . 1 . 5 Ram . | . . . . . Kick . | . . . . . Crush . | . . . . . Escape Stasis . | . . . . . Rewire . | . . . . . Trap . | . . . . . Miscellaneous . | . . . . . Route ------- -11/Scrapyard -10/Materials (discovered 5 exits: *Mat x3 / *Min / *Sub) -10/Mines (discovered 3 exits: Mat / [*Exi] / Sub) -10/Exiles -9/Mines History --------- Turn | Location | Event 22 | -11/Scrapyard | Discovered new exit (range 15) 62 | -11/Scrapyard | Entered Materials 286 | -10/Materials | Destroyed 7 combat bots 309 | -10/Materials | Build established: Mutant 334 | -10/Materials | Central database locked down 361 | -10/Materials | Discovered new exit (range 4) 418 | -10/Materials | Learned Storage security intel 420 | -10/Materials | Prayed at D.C.S.S. Altar Unit 438 | -10/Materials | Discovered new exit (range 4) 477 | -10/Materials | Weapon slot count temporarily expanded by X0-1V1 (+1) 484 | -10/Materials | Learned location of 1 exit from Recycling 539 | -10/Materials | Identified exit to Materials 584 | -10/Materials | Learned location of 1 exit from Storage 590 | -10/Materials | Discovered exit to Materials (range 12) 599 | -10/Materials | Core integrity fell below 50% 618 | -10/Materials | Learned 2 Mines zone layouts 640 | -10/Materials | Ranged accuracy permanently improved by X0-1V1 (+6%; -60 max core) 642 | -10/Materials | Learned location of 1 exit from Recycling 656 | -10/Materials | Identified exit to Mines 657 | -10/Materials | X0-1V1 activates XOMVISION 691 | -10/Materials | Core integrity restored by X0-1V1 (+36) 705 | -10/Materials | X0-1V1 sent you into danger 749 | -10/Materials | X0-1V1 foreshadows a heat wave 761 | -10/Materials | Learned location of 1 exit from Storage 778 | -10/Materials | Build established: Gunner 786 | -10/Materials | X0-1V1 sent hostile S-10 Pest (x5) 809 | -10/Materials | X0-1V1 announced a LAN party 819 | -10/Materials | Learned 2 Mines zone layouts 850 | -10/Materials | Core integrity restored by X0-1V1 (+39) 857 | -10/Materials | Entered Mines 858 | -10/Mines | Identified exit to Subcaves 875 | -10/Mines | X0-1V1 mutated your Propulsion slot to Weapon slot 889 | -10/Mines | X0-1V1 sent you into danger 924 | -10/Mines | Melee accuracy permanently improved by X0-1V1 (+5%; -50 max core) 926 | -10/Mines | X0-1V1 added 0b10 threat records associated with you (minor) 950 | -10/Mines | Forcibly received Sfc. Transmogifier from X0-1V1 968 | -10/Mines | X0-1V1 sent hostile S-10 Pest (x4) 1009 | -10/Mines | Learned location of Zion (-6) 1009 | -10/Mines | Core integrity restored by X0-1V1 (+33) 1012 | -10/Mines | System corruption reached 10% 1192 | -10/Mines | Deemed a non-threat by the Exiles lab entrance 1192 | -10/Mines | Discovered new exit (range 5) 1202 | -10/Mines | Entered Exiles 1203 | -10/Exiles | Identified exit to Mines 1269 | -10/Exiles | Met 8R-AWN 1310 | -10/Exiles | Met EX-HEX 1398 | -10/Exiles | Met EX-DEC 1468 | -10/Exiles | Build established: Mutant 1506 | -10/Exiles | Entered Mines 1594 | -9/Mines | Assembled infested the area 1647 | -9/Mines | Destroyed by D-53 Grenadier with Mini Grenade Launcher Last Messages --------------- 01637_ as-33478 destroyed. 01638_ D-53 Grenadier destroyed. 01638_ CPS modules attach to as-54478. 01639_ T-07 Excavator is excavating. 01640_ The unstable cave ceiling collapses. 01641_ X0-1V1: "One team is clearly getting beat up here. Hardly fair." as-20577 sparkles and shines. as-54478 sparkles and shines. D-53 Grenadier sparkles and shines. 01643_ CPS modules swiftly deploy to protect as-54478 components. 01643_ as-54478 destroyed. 01643_ D-53 Grenadier knocked back. 01643_ T-07 Excavator is excavating. 01645_ The unstable cave ceiling collapses. 01645_ Enh. Nuclear Core destroyed. 01646_ The unstable cave ceiling collapses. 01647_ T-07 Excavator is excavating. 01647_ X0-1V1 snickers! Map ----- +----------------------------------------------------+ | | | | | ??????????????????????????????????????? | | ??????????????????????????????????????# | | ?????????????????????????????????????## | | ????????????????????????????????????##! | | ????????????????????????????????????# | | ???????# ??????##???????????????????# | | ???????? ##### #??????????????????# | | ???????? ##?????????????????#! | | ??????????? #????????????????## | | ??????????????# #########???????## | | ??????????????# a #???????# | | ?????????????## """ #???????# | | ?????????????# a""" ##### #???????# | | ?????????????# a""" #???# #???????# | | ?????????????##a #???# #??????## ] | | ??????????????# ##???# #??????# | | ??????????????#a####????# ######## ! | | ??????????????#a#???????# | | ???????????#### ##??????########## # | | ??????????## [###??????????????# ### | | ???????#?## a ##?????????????# #?? | | ???????# # #?????????????# #?? | | ???????# t #?????????????# #?? | | ???????# | @ #????????????? #?? | | ???????## d #???????????? ####?? | | ????????## #???????????? ?????? | | ?????????## ##??????????????????? | | ????????? # ##???????????????????? | | ???????? ### ##????????????????????? | | ??????? ??#%#?????????????????????? | | ?????? ? ???# #?????????????????????? | | ????? ? ???# #?????????????????????? | | ????## ? ????? #?????????????????????? | | ?????#?? ????? #?????????????????????? | | ??????? ?????? #?????????????????????? | | ??????? ?????? #?????????????????????? | | ???????#??????? ??????????????????????? | | ??????????????? ??????????????????????? | | ??????????????? ??????????????????????? | | ??????????????????????????????????????? | | ??????????????????????????????????????? | | ??????????????????????????????????????? | | ??????????????????????????????????????? | | ??????????????????????????????????????? | | ??????????????????????????????????????? | | ??????????????????????????????????????? | | ??????????????????????????????????????? | | ??????????????????????????????????????? | +----------------------------------------------------+ Best States ------------- Heat Dissipation 119 Energy Generation 17 Energy Capacity 1300 Matter Stores 410 Matter Capacity 800 Sight Range 22 Terrain Scan Density 10 Evasion (%) 42 Recoil Reduction 2 Item Schematics ----------------- None Robot Schematics ------------------ None Fabricated ------------ Nothing Repaired ---------- Nothing Studied --------- None Alien Tech Used ----------------- None Achievements -------------- None Challenges ------------ None Game ------ Seed ChipTeleporterMagmablaster Manual? 0 Play Time 00:14:46 Cumulative 333.2 hours Start 2026.07.16 @ 23:42:16 End 2026.07.16 @ 23:58:48 Sessions 1 Manual Loads 0 Difficulty Rogue Special Mode None Game No. 403 Rogue 403 Adventurer 0 Explorer 0 Win Type - Total 22 Types 14/0/3/1/1/0/1/1/0/1 Lore% 80 Gallery% 74 Achievement% 66 Wizard Run 0 Options --------- Layout 1 ASCII 0 Keyboard 1 Movement Arrows Keybinds 0 Fullscreen 2 Font 36/Smallcaps Map View 50x40 Zoom Use 1% Tactical HUD 1 Map Filters NONE Filters NONE Steam 1 RUN: 6ef9c9f1-3f6c-4374-b8aa-073146b38409